fUSD/lending_fUSD_20260421
["ID","MTS","AMOUNT","RATE_DAILY","PERIOD"]
[420917732,1776724242799,-501.24,0.00017863,2]
[420917733,1776724242808,-434.541255,0.00017878,2]
[420917734,1776724242817,-313.935602,0.00018038,7]
[420917735,1776724242826,-879.628986,0.00018038,7]
[420917736,1776724242835,-370.08,0.00018113,2]
[420917737,1776724242845,-501.24,0.00018137,2]
[420917738,1776724242854,-260.0,0.00018211,2]
[420917739,1776724242863,-642.7,0.00018411,2]
[420917740,1776724242873,-500.0,0.0001866,2]
[420917741,1776724242882,-158.32741154,0.0001906,2]
[420917742,1776724242892,-500.0,0.00019219,2]
[420917743,1776724242901,-574.0,0.00019261,5]
[420917744,1776724242911,-520.0,0.00019261,5]
[420917745,1776724242920,-840.0,0.00019261,5]
[420917746,1776724242929,-299.99,0.00019339,7]
[420917747,1776724242939,-150.99,0.00019339,2]
[420917748,1776724242948,-9999.99,0.00019339,2]
[420917749,1776724242958,-8103.34,0.00019339,2]
[420917750,1776724242967,-442.11,0.000194,2]
[420917752,1776724242976,-2247.95,0.00019524,2]
[420917753,1776724242985,-500.0,0.00019796,2]
[420917754,1776724242995,-198.596281,0.00019983,7]
[420917755,1776724243005,-211.9,0.0002,2]
[420917756,1776724243014,-575.0,0.0002,2]
[420917757,1776724243024,-172.0,0.0002,2]
[420917759,1776724243034,-524.0,0.0002,2]
[420917761,1776724243043,-154.0,0.0002,2]
[420917763,1776724243052,-158.0,0.0002,2]
[420917765,1776724243062,-342.8,0.0002,30]
[420917767,1776724243072,-154.0,0.0002,2]
[420917769,1776724243081,-198.0,0.0002,2]
[420917771,1776724243091,-434.541255,0.00020242,2]
[420917773,1776724243100,-500.0,0.0002039,2]
[420917774,1776724243109,-315.764251,0.00020391,7]
[420917775,1776724243118,-506.83,0.00020738,2]
[420917776,1776724243128,-263.19171234,0.0002075,2]
[420917778,1776724243137,-575.0,0.00021,2]
[420917780,1776724243147,-524.0,0.00021,2]
[420917781,1776724243157,-154.0,0.00021,2]
[420917783,1776724243166,-158.0,0.00021,2]
[420917785,1776724243174,-154.0,0.00021,2]
[420917787,1776724243184,-198.0,0.00021,2]
[420917789,1776724243193,-500.0,0.00021002,2]
[420917791,1776724243202,-2000.0,0.000215,2]
[420917793,1776724243211,-260.0,0.00021571,3]
[420917795,1776724243221,-500.0,0.00021632,2]
[420917797,1776724243230,-1053.89,0.00021821,2]
[420917799,1776724243239,-174.06998197,0.00021834,2]
[420917801,1776724243248,-500.0,0.00021863,2]
[420917803,1776724243258,-150.0,0.00021874,2]
[420917805,1776724243267,-575.0,0.00022,2]
[420917807,1776724243277,-524.0,0.00022,2]
[420917809,1776724243287,-154.0,0.00022,2]
[420917811,1776724243296,-198.0,0.00022,2]
[420917813,1776724243306,-342.8,0.00022161,30]
[420917815,1776724243315,-1852.42,0.00022209,2]
[420917817,1776724243324,-500.0,0.00022281,2]
[420917819,1776724243334,-5000.0,0.00022284,2]
[420917821,1776724243344,-442.11,0.000223,7]
[420917823,1776724243354,-150.0,0.00022507,5]
[420917825,1776724243363,-434.541255,0.00022607,2]
[420917827,1776724243373,-158.32741154,0.00022607,2]
[420917828,1776724243383,-152.73319459,0.00022607,2]
[420917830,1776724243392,-443.55,0.00022903,2]
[420917832,1776724243402,-500.0,0.00022949,2]
[420917834,1776724243411,-575.0,0.00023,2]
[420917836,1776724243420,-524.0,0.00023,2]
[420917838,1776724243430,-170.0,0.00023,2]
[420917840,1776724243441,-198.0,0.00023,2]
[420917842,1776724243451,-500.0,0.00023185,120]
[420917845,1776724243461,-500.0,0.00023637,2]
[420917846,1776724243470,-150.0,0.00023767,5]
[420917848,1776724243480,-500.0,0.0002387,120]
[420917849,1776724243489,-575.0,0.00024,2]
[420917850,1776724243498,-524.0,0.00024,2]
[420917851,1776724243508,-198.0,0.00024,2]
[420917852,1776724243517,-342.8,0.00024322,60]
[420917853,1776724243526,-500.0,0.00024347,2]
[420917854,1776724243536,-260.0,0.00024484,5]
[420917855,1776724243545,-150.0,0.00024658,2]
[420917856,1776724243554,-168.15,0.00024658,2]
[420917857,1776724243564,-2000.0,0.00024729,2]
[420917858,1776724243573,-500.0,0.00024774,120]
[420917859,1776724243582,-151.0,0.00024897,7]
[420917860,1776724243592,-23426.6158033,0.000249,2]
[420917861,1776724243600,-434.541255,0.00024971,2]
[420917862,1776724243610,-151.0,0.00024997,7]
[420917863,1776724243619,-10005.0,0.00025,2]
[420917864,1776724243628,-579.0,0.00025,2]
[420917865,1776724243636,-524.0,0.00025,2]
[420917866,1776724243646,-210.0,0.00025,2]
[420917867,1776724243655,-4000.0,0.00025043,2]
[420917868,1776724243664,-500.0,0.00025077,2]
[420917869,1776724243673,-442.11,0.000251,7]
[420917870,1776724243682,-506.83,0.00025176,2]
[420917871,1776724243691,-2000.0,0.000252,2]
[420917872,1776724243700,-500.0,0.00025541,120]
[420917873,1776724243710,-4000.0,0.00025669,2]
[420917874,1776724243719,-500.0,0.00025829,2]
[420917875,1776724243728,-150.0,0.0002589,2]
[420917876,1776724243737,-150.0,0.00026,3]
[420917877,1776724243746,-158.32741154,0.00026153,2]
[420917878,1776724243756,-500.0,0.00026224,10]
[420917879,1776724243765,-500.0,0.00026224,10]
[420917880,1776724243774,-500.0,0.00026224,10]
[420917881,1776724243783,-500.0,0.00026224,10]
[420917882,1776724243793,-500.0,0.00026224,10]
[420917883,1776724243802,-500.0,0.00026224,10]
[420917884,1776724243812,-500.0,0.00026224,10]
[420917885,1776724243821,-500.0,0.00026224,10]
[420917886,1776724243830,-500.0,0.00026224,10]
[420917887,1776724243839,-499.3169683,0.00026224,10]
[420917888,1776724243850,-4000.0,0.00026295,2]
[420917889,1776724243858,-342.8,0.00026483,60]
[420917890,1776724243867,-500.0,0.00026528,120]
[420917891,1776724243877,-500.0,0.00026604,2]
[420917892,1776724243886,-174.06998197,0.000268,2]
[420917893,1776724243895,-4000.0,0.00026921,2]
[420917894,1776724243904,-260.0,0.0002701,8]
[420917895,1776724243913,-154.0,0.00027139,120]
[420917896,1776724243923,-674.0,0.00027139,120]
[420917897,1776724243932,-578.20924308,0.00027144,2]
[420917898,1776724243942,-6057.00625335,0.00027144,2]
[420917899,1776724243951,-209.40437684,0.00027144,2]
[420917900,1776724243960,-500.0,0.00027144,2]
[420917901,1776724243971,-1428.38747117,0.00027144,2]
[420917902,1776724243980,-721.12765535,0.00027144,2]
[420917903,1776724243990,-151.0,0.00027144,2]
[420917904,1776724243999,-743.50770149,0.00027144,2]
[420917905,1776724244008,-209.40437684,0.00027144,2]
[420917906,1776724244017,-200.0,0.00027144,2]
[420917907,1776724244026,-151.0,0.00027144,2]
[420917908,1776724244035,-174.61919141,0.00027144,2]
[420917909,1776724244044,-537.93608381,0.00027144,2]
[420917910,1776724244166,-151.0,0.00012959,2]
[420917911,1776724244175,-673.0,0.00013424,2]
[420917912,1776724245597,-636.38229,0.00013424,2]
[420917913,1776724245606,-1001.851561,0.00014095,7]
[420917914,1776724245616,-520.962812,0.00015438,7]
[420917915,1776724245626,-187.012291,0.00017451,7]
[420917916,1776724245635,-89.84014025,0.00027144,2]
[420917917,1776724245644,-1000.0,0.00027144,2]
[420917918,1776724245654,-1000.0,0.00027144,2]
[420917919,1776724245663,-1000.0,0.00027144,2]
[420917920,1776724245672,-1000.0,0.00027144,2]
[420917921,1776724245681,-704.6976439,0.00027144,2]
[420917922,1776724245692,-297.2842683,0.00027144,2]
[420917923,1776724245701,-209.40437684,0.00027144,2]
[420917924,1776724245711,-152.0,0.00027144,2]
[420917925,1776724245720,-152.0,0.00027144,2]
[420917926,1776724245729,-550.0,0.00027144,10]
[420917927,1776724245739,-805.0,0.00027144,10]
[420917928,1776724245748,-325.0,0.00027144,10]
[420917929,1776724245758,-150.0,0.00027185,2]
[420917930,1776724245767,-500.0,0.00027199,2]
[420917931,1776724245776,-151.0,0.00027199,2]
[420917932,1776724245785,-500.0,0.00027254,2]
[420917933,1776724245794,-151.0,0.00027254,2]
[420917934,1776724245803,-500.0,0.00027309,2]
[420917935,1776724245812,-151.0,0.00027309,2]
[420917936,1776724245822,-2247.95,0.00027334,2]
[420917937,1776724245831,-434.541255,0.00027336,2]
[420917938,1776724245840,-500.0,0.00027364,2]
[420917939,1776724245849,-151.0,0.00027364,2]
[420917940,1776724245858,-500.0,0.00027377,120]
[420917941,1776724245867,-1000.0,0.00027397,20]
[420917942,1776724245877,-300.0,0.00027397,2]
[420917943,1776724245886,-380.75236589,0.00027397,2]
[420917944,1776724245895,-1190.0,0.00027397,15]
[420917945,1776724245905,-200.0,0.00027397,5]
[420917946,1776724245914,-500.0,0.00027402,14]
[420917947,1776724245924,-500.0,0.00027419,2]
[420917948,1776724245933,-151.0,0.00027419,2]
[420917949,1776724245943,-157.0,0.00027433,5]
[420917950,1776724245952,-500.0,0.00027474,2]
[420917951,1776724245962,-151.0,0.00027474,2]
[420917952,1776724245971,-307.0,0.000275,2]
[420917953,1776724245981,-1000.0,0.000275,2]
[420917954,1776724245991,-313.0,0.000275,2]
[420917955,1776724246000,-500.0,0.00027529,2]
[420917956,1776724246009,-151.0,0.00027529,2]
[420917957,1776724246019,-4000.0,0.00027547,2]
[420917958,1776724246028,-500.0,0.00027584,2]
[420917959,1776724246037,-151.0,0.00027584,2]
[420917960,1776724246047,-500.0,0.00027639,2]
[420917961,1776724246056,-151.0,0.00027639,2]
[420917962,1776724246065,-1190.0,0.00027671,15]
[420917963,1776724246075,-187.78006525,0.00027692,2]
[420917964,1776724246084,-1481.23780761,0.00027692,2]
[420917965,1776724246094,-771.01748645,0.00027692,2]
[420917967,1776724246103,-194.46134515,0.00027692,2]
[420917969,1776724246112,-200.0,0.00027692,2]
[420917971,1776724246121,-181.08010149,0.00027692,2]
[420917972,1776724246130,-172.70234561,0.00027692,2]
[420917974,1776724246139,-500.0,0.00027694,2]
[420917975,1776724246148,-151.0,0.00027694,2]
[420917976,1776724246156,-2000.0,0.0002782,2]
[420917977,1776724246166,-168.67516441,0.00027941,2]
[420917978,1776724246175,-1190.0,0.00027945,15]
[420917979,1776724246184,-500.0,0.00028117,120]
[420917980,1776724246194,-1190.0,0.00028219,15]
[420917981,1776724246204,-500.0,0.00028224,16]
[420917982,1776724246215,-1536.04360649,0.0002824,2]
[420917983,1776724246224,-715.99791653,0.0002824,2]
[420917984,1776724246233,-200.0,0.0002824,2]
[420917985,1776724246243,-187.78006525,0.0002824,2]
[420917986,1776724246252,-500.0,0.00028281,120]
[420917987,1776724246261,-200.04,0.000283,14]
[420917988,1776724246271,-168.15,0.0002831,2]
[420917989,1776724246280,-919.24935825,0.00028363,2]
[420917990,1776724246292,-1037.32092717,0.00028363,2]
[420917991,1776724246304,-1235.34021761,0.00028363,2]
[420917992,1776724246315,-445.5,0.00028363,2]
[420917993,1776724246977,-4176.22660983,0.00027397,10]
[420917994,1776724282090,1239.86,8.227e-05,2]
[420917995,1776724286673,8760.15,8.171e-05,2]
[420917996,1776724286699,10000.01,8.171e-05,2]
[420917997,1776724286723,10000.01,8.171e-05,2]
[420917998,1776724286748,10000.01,8.171e-05,2]
[420917999,1776724286773,10000.01,8.171e-05,2]
[420918000,1776724286798,10000.01,8.171e-05,2]
[420918001,1776724286822,10000.01,8.171e-05,2]
[420918002,1776724286846,10000.01,8.171e-05,2]
[420918003,1776724286871,10000.01,8.171e-05,2]
[420918004,1776724286895,10000.01,8.171e-05,2]
[420918005,1776724286927,256598.72647526,8.171e-05,2]
[420918006,1776724286960,491874.07092474,8.171e-05,2]
[420918009,1776724424269,479.4968,8.132e-05,2]
[420918024,1776724452495,9520.5132,8.171e-05,2]
[420918025,1776724452519,10000.01,8.171e-05,2]
[420918026,1776724452543,10000.01,8.171e-05,2]
[420918027,1776724452569,10000.01,8.171e-05,2]
[420918028,1776724452594,10000.01,8.171e-05,2]
[420918029,1776724452618,4198.8222,8.171e-05,2]
[420918051,1776725433491,-500.0,8.354e-05,2]
[420918052,1776725433501,-248.0,8.354e-05,2]
[420918053,1776725433510,-152.0,8.358e-05,2]
[420918054,1776725433522,-150.0,8.38e-05,2]
[420918055,1776725433532,-150.0,8.52e-05,2]
[420918056,1776725433542,-150.0,8.812e-05,2]
[420918057,1776725433552,-150.0,9.112e-05,2]
[420918058,1776725433561,-250.0,9.189e-05,2]
[420918059,1776725433571,-150.0,9.412e-05,2]
[420918060,1776725433581,-150.0,9.628e-05,2]
[420918061,1776725433590,-150.0,0.0001002,2]
[420918062,1776725433599,-150.0,0.0001032,2]
[420918063,1776725433608,-150.0,0.0001062,2]
[420918064,1776725433618,-150.0,0.0001092,2]
[420918065,1776725433627,-257.75,0.0001122,2]
[420918066,1776725433637,-411.83059293,0.00011735,2]
[420918067,1776725433682,-788.16940707,0.00011735,2]
[420918068,1776725433691,-152.0,0.00011736,2]
[420918069,1776725433701,-5500.01,0.00011736,2]
[420918070,1776725433710,-1101.0,0.00011794,2]
[420918071,1776725433720,-300.0,0.00011795,2]
[420918072,1776725433729,-3670.3254,0.000118,2]
[420918073,1776725433738,-1000.0,0.000118,2]
[420918074,1776725433748,-151.0,0.00012123,2]
[420918075,1776725433757,-151.0,0.00012124,2]
[420918076,1776725433767,-250.0,0.00013,2]
[420918077,1776725433776,-500.0,0.00013698,2]
[420918078,1776725433786,-501.24,0.00013699,2]
[420918079,1776725433795,-518.4,0.00013699,2]
[420918080,1776725433804,-505.0,0.0001372,2]
[420918081,1776725433814,-501.24,0.00013973,2]
[420918082,1776725433824,-518.4,0.00013973,2]
[420918083,1776725433834,-501.24,0.00014247,2]
[420918084,1776725433843,-518.4,0.00014247,2]
[420918085,1776725433852,-178.08,0.00014445,2]
[420918086,1776725433862,-501.24,0.00014521,2]
[420918087,1776725433872,-518.4,0.00014521,2]
[420918088,1776725433882,-501.28,0.00014795,2]
[420918089,1776725433892,-518.4,0.00014795,2]
[420918090,1776725433902,-518.41,0.00015068,2]
[420918091,1776725433911,-254.55,0.00015471,2]
[420918092,1776725433921,-1528.66,0.00015757,2]
[420918093,1776725433931,-505.0,0.00015858,3]
[420918094,1776725433940,-500.0,0.00015882,2]
[420918095,1776725433951,-1852.42,0.00015967,2]
[420918096,1776725433960,-1218.74,0.00016158,2]
[420918097,1776725433970,-166.66,0.0001626,2]
[420918098,1776725433979,-150.284,0.00016438,7]
[420918099,1776725433989,-150.9371746,0.00016438,2]
[420918100,1776725433998,-150.0,0.00016438,7]
[420918101,1776725434008,-150.0,0.00016438,7]
[420918102,1776725434017,-158.7752406,0.00016438,7]
[420918103,1776725434027,-158.7752406,0.00016438,7]
[420918104,1776725434036,-158.7752406,0.00016438,7]
[420918105,1776725434046,-158.7752406,0.00016438,7]
[420918106,1776725434056,-1600.0,0.00016521,2]
[420918107,1776725434065,-166.66,0.00016796,2]
[420918108,1776725434079,-500.0,0.0001681,2]
[420918109,1776725434088,-500.0,0.0001681,2]
[420918110,1776725434098,-500.0,0.0001681,2]
[420918111,1776725434108,-600.0,0.0001681,2]
[420918112,1776725434118,-500.0,0.0001681,2]
[420918113,1776725434127,-500.0,0.0001681,2]
[420918114,1776725434137,-500.0,0.0001681,2]
[420918115,1776725434147,-500.0,0.0001681,2]
[420918116,1776725434159,-500.0,0.0001681,2]
[420918117,1776725434168,-500.0,0.0001681,2]
[420918118,1776725434178,-500.0,0.0001681,2]
[420918119,1776725434187,-500.0,0.0001681,2]
[420918120,1776725434197,-500.0,0.0001681,2]
[420918121,1776725434207,-500.0,0.0001681,2]
[420918122,1776725434216,-500.0,0.0001681,2]
[420918123,1776725434226,-488.0,0.0001681,2]
[420918124,1776725434236,-500.0,0.0001681,2]
[420918125,1776725434246,-500.0,0.0001681,2]
[420918126,1776725434256,-500.0,0.0001681,2]
[420918127,1776725434265,-500.0,0.0001681,2]
[420918128,1776725434275,-500.0,0.0001681,2]
[420918129,1776725434285,-500.0,0.0001681,2]
[420918130,1776725434295,-500.0,0.0001681,2]
[420918131,1776725434305,-500.0,0.0001681,2]
[420918132,1776725434315,-500.0,0.0001681,2]
[420918133,1776725434325,-500.0,0.0001681,2]
[420918134,1776725434335,-591.74409425,0.0001681,2]
[420918135,1776725434345,-150.0,0.0001681,2]
[420918136,1776725434355,-500.0,0.0001681,2]
[420918137,1776725434365,-500.0,0.0001681,2]
[420918138,1776725434375,-500.0,0.0001681,2]
[420918139,1776725434385,-150.0,0.0001681,2]
[420918140,1776725434395,-500.0,0.0001681,2]
[420918141,1776725434404,-178.88867744,0.0001681,2]
[420918142,1776725434414,-500.0,0.0001681,2]
[420918143,1776725434423,-500.0,0.0001681,2]
[420918144,1776725434433,-500.0,0.0001681,2]
[420918145,1776725434443,-291.23744194,0.0001681,2]
[420918146,1776725434452,-500.0,0.0001681,2]
[420918147,1776725434462,-500.0,0.0001681,2]
[420918148,1776725434471,-718.0,0.0001681,2]
[420918149,1776725434481,-500.0,0.0001681,2]
[420918150,1776725434490,-718.0,0.0001681,2]
[420918151,1776725434500,-500.0,0.0001681,2]
[420918152,1776725434510,-718.0,0.0001681,2]
[420918153,1776725434520,-500.0,0.0001681,2]
[420918154,1776725434530,-718.0,0.0001681,2]
[420918155,1776725434540,-500.0,0.0001681,2]
[420918156,1776725434550,-718.0,0.0001681,2]
[420918157,1776725434559,-500.0,0.0001681,2]
[420918158,1776725434569,-718.0,0.0001681,2]
[420918159,1776725434578,-500.0,0.0001681,2]
[420918160,1776725434588,-718.0,0.0001681,2]
[420918161,1776725434597,-500.0,0.0001681,2]
[420918162,1776725434607,-718.0,0.0001681,2]
[420918163,1776725434617,-500.0,0.0001681,2]
[420918164,1776725434626,-718.0,0.0001681,2]
[420918165,1776725434636,-500.0,0.0001681,2]
[420918166,1776725434646,-718.0,0.0001681,2]
[420918167,1776725434656,-500.0,0.0001681,2]
[420918168,1776725434666,-718.0,0.0001681,2]
[420918169,1776725434675,-500.0,0.0001681,2]
[420918170,1776725434684,-500.0,0.0001681,2]
[420918171,1776725434694,-718.0,0.0001681,2]
[420918172,1776725434703,-500.0,0.0001681,2]
[420918173,1776725434713,-718.0,0.0001681,2]
[420918174,1776725434722,-500.0,0.0001681,2]
[420918175,1776725434732,-718.0,0.0001681,2]
[420918176,1776725434741,-718.0,0.0001681,2]
[420918177,1776725434751,-350.0,0.0001681,2]
[420918178,1776725434760,-718.0,0.0001681,2]
[420918179,1776725434770,-150.0,0.0001681,2]
[420918180,1776725434779,-718.0,0.0001681,2]
[420918181,1776725434789,-500.0,0.0001681,2]
[420918182,1776725434799,-500.0,0.0001681,2]
[420918183,1776725434808,-500.0,0.0001681,2]
[420918184,1776725434818,-718.0,0.0001681,2]
[420918185,1776725434828,-500.0,0.0001681,2]
[420918186,1776725434838,-500.0,0.0001681,2]
[420918187,1776725434848,-500.0,0.0001681,2]
[420918188,1776725434858,-500.0,0.0001681,2]
[420918189,1776725434868,-500.0,0.0001681,2]
[420918190,1776725434877,-500.0,0.0001681,2]
[420918191,1776725434887,-718.0,0.0001681,2]
[420918192,1776725434897,-500.0,0.0001681,2]
[420918193,1776725434906,-500.0,0.0001681,2]
[420918194,1776725434915,-235.36257079,0.0001681,2]
[420918195,1776725434925,-718.0,0.0001681,2]
[420918196,1776725434935,-718.0,0.0001681,2]
[420918197,1776725434944,-718.0,0.0001681,2]
[420918198,1776725434954,-732.14193434,0.0001681,2]
[420918199,1776725434964,-500.0,0.0001681,2]
[420918200,1776725434973,-500.0,0.0001681,2]
[420918201,1776725434983,-500.0,0.0001681,2]
[420918202,1776725434995,-500.0,0.0001681,2]
[420918203,1776725435006,-500.0,0.0001681,2]
[420918204,1776725435016,-500.0,0.0001681,2]
[420918205,1776725435026,-500.0,0.0001681,2]
[420918206,1776725435036,-500.0,0.0001681,2]
[420918207,1776725435046,-500.0,0.0001681,2]
[420918208,1776725435055,-500.0,0.0001681,2]
[420918209,1776725435065,-372.01730652,0.0001681,2]
[420918210,1776725435075,-500.0,0.00016873,2]
[420918211,1776725435084,-500.0,0.00016873,2]
[420918212,1776725435094,-2000.0,0.00017,2]
[420918213,1776725435104,-34113.56,0.000171,2]
[420918214,1776725435113,-166.66,0.00017333,2]
[420918215,1776725435123,-150.0,0.00017358,2]
[420918216,1776725435133,-301.95,0.00017728,2]
[420918217,1776725435142,-166.66,0.0001787,2]
[420918218,1776725435154,-500.0,0.00017918,2]
[420918219,1776725435164,-505.0,0.00017996,5]
[420918220,1776725435173,-398.37635569,0.00018018,2]
[420918221,1776725435183,-166.66,0.00018406,2]
[420918222,1776725435193,-20035.22,0.00018533,2]
[420918223,1776725435202,-1600.0,0.00018586,2]
[420918224,1776725435212,-166.66,0.00018943,2]
[420918225,1776725435222,-1885.1,0.00019109,2]
[420918226,1776725435231,-225.02,0.00019572,2]
[420918227,1776725435241,-152.73319459,0.00019685,2]
[420918228,1776725435251,-151.79,0.00019775,3]
[420918229,1776725435260,-759.0,0.00019775,3]
[420918230,1776725435270,-1868.4927848,0.00019785,2]
[420918231,1776725435293,-1660.5072152,0.00019785,2]
[420918232,1776725435303,-451.27309029,0.00019785,2]
[420918236,1776725437946,-301.76454383,0.00019785,2]
[420918237,1776725437983,-595.96236588,0.00019785,2]
[420918238,1776725437992,-622.0,0.00019785,2]
[420918239,1776725438002,-278.17135412,0.00019785,2]
[420918240,1776725438014,-986.82864588,0.00019785,2]
[420918241,1776725438025,-150.0,0.00019785,2]
[420918242,1776725438035,-184.56,0.00019812,3]
[420918243,1776725438044,-393.0,0.0002,2]
[420918244,1776725438054,-402.0,0.0002,2]
[420918245,1776725438064,-721.86,0.0002,30]
[420918246,1776725438074,-160.0,0.0002,2]
[420918247,1776725438084,-366.0,0.0002,2]
[420918248,1776725438094,-505.0,0.00020134,7]
[420918249,1776725438103,-579.94622367,0.00020483,7]
[420918250,1776725438113,-1600.0,0.00020652,2]
[420918251,1776725438123,-2000.0,0.000207,2]
[420918252,1776725438133,-155.0,0.00020725,2]
[420918253,1776725438142,-393.0,0.00021,2]
[420918254,1776725438152,-402.0,0.00021,2]
[420918255,1776725438161,-366.0,0.00021,2]
[420918256,1776725438171,-393.0,0.00022,2]
[420918257,1776725438180,-402.0,0.00022,2]
[420918258,1776725438189,-366.0,0.00022,2]
[420918259,1776725438199,-706.5,0.00022161,30]
[420918260,1776725438209,-505.0,0.00022272,9]
[420918261,1776725438218,-2000.0,0.00022393,2]
[420918262,1776725438228,-4000.0,0.0002267,2]
[420918263,1776725438239,-1600.0,0.00022717,2]
[420918264,1776725438248,-3527.0,0.00022785,2]
[420918265,1776725438257,-393.0,0.00023,2]
[420918266,1776725438266,-402.0,0.00023,2]
[420918267,1776725438275,-366.0,0.00023,2]
[420918268,1776725438285,-309.0,0.00023228,7]
[420918269,1776725438294,-528.0,0.00023228,7]
[420918271,1776725438303,-772.0,0.00023228,7]
[420918273,1776725438313,-4000.0,0.00023237,2]
[420918274,1776725438322,-4000.0,0.00023804,2]
[420918275,1776725438332,-185.126729,0.00023912,120]
[420918276,1776725438341,-393.0,0.00024,2]
[420918277,1776725438351,-402.0,0.00024,2]
[420918279,1776725438361,-366.0,0.00024,2]
[420918281,1776725438370,-723.683167,0.00024164,120]
[420918283,1776725438379,-370.253459,0.00024286,120]
[420918285,1776725438388,-850.797486,0.00024286,120]
[420918287,1776725438398,-670.85,0.00024322,60]
[420918289,1776725438406,-165.851682,0.0002434,14]
[420918290,1776725438415,-175.01664,0.0002434,14]
[420918291,1776725438424,-4000.0,0.0002437,2]
[420918292,1776725438433,-2000.0,0.000244,2]
[420918293,1776725438443,-505.0,0.0002441,11]
[420918294,1776725438452,-211.686195,0.00024438,120]
[420918295,1776725438462,-175.01664,0.000245,120]
[420918296,1776725438471,-338.39936923,0.0002458,2]
[420918297,1776725438480,-160.6543672,0.0002458,2]
[420918298,1776725438491,-500.0,0.0002458,2]
[420918299,1776725438500,-500.0,0.0002458,2]
[420918300,1776725438509,-500.0,0.00024625,2]
[420918302,1776725438519,-1000.0,0.00024658,2]
[420918304,1776725438528,-150.0,0.00024658,2]
[420918306,1776725438537,-193.256037,0.00024688,14]
[420918308,1776725438547,-1040.455462,0.00024688,120]
[420918310,1776725438556,-1448.46357613,0.00024782,120]
[420918329,1776725440086,-615.0,0.0002441,10]
[420918330,1776725440096,-484.0,0.0002441,10]
[420918331,1776725440106,-151.53642387,0.00024782,120]
[420918332,1776725440115,-836.81918782,0.00024837,2]
[420918333,1776725440140,-740.0,0.00024782,10]
[420918334,1776725440150,-1663.18081218,0.00024837,2]
[420918335,1776725440159,-4000.0,0.00024937,2]
[420918336,1776725440168,-197.27080828,0.00024992,2]
[420918337,1776725440178,-409.0,0.00025,2]
[420918338,1776725440187,-412.0,0.00025,2]
[420918339,1776725440197,-382.0,0.00025,2]
[420918340,1776725440207,-1000.0,0.00025128,2]
[420918341,1776725440216,-1000.0,0.00025128,2]
[420918342,1776725440226,-1000.0,0.00025173,2]
[420918343,1776725440235,-2000.0,0.00025192,2]
[420918344,1776725440244,-2263.7,0.0002548,2]
[420918345,1776725440254,-895.70211527,0.00025676,2]
[420918346,1776725440263,-500.0,0.00025676,2]
[420918347,1776725440273,-150.0,0.0002589,2]
[420918348,1776725440283,-3405.047,0.00026,12]
[420918349,1776725440293,-230.842,0.00026153,12]
[420918350,1776725440302,-643.23,0.00026483,60]